{"text_format":"1","workbook":"xlsx","n_sheets":5,"sheets":["INFORMACE KLUBU HCM","NÁBOROVÁ STRATEGIE HCM","METODICKÁ ČINNOST HCM","SPORTOVNÍ ČINNOST HCM","NASTAVENÍ DOKUMENTU"],"not_rendered":{"charts":0,"images":15,"macros":1,"external_links":0,"defined_names":18,"comments":0,"pivot_tables":0},"unopened":[],"bounds":{"document_bytes":16777216,"sheet_cells":100000,"rows_first":2000,"rows_last":500,"rows_between":2000,"halvings":0,"cell_chars":16384,"cell_head_chars":4096},"cells_cut":0,"cells_raw":0,"read":"whole","date_system":"1900"}

{"sheet":"INFORMACE KLUBU HCM","index":0,"n_rows":67,"n_cols":30,"rows_kept":67,"cut":false,"hidden":false,"merged":[[19,15,19,19],[21,9,21,16],[21,17,21,18],[6,6,7,6],[6,7,7,19],[9,7,10,8],[9,9,10,19],[12,7,13,8],[12,9,13,19],[27,9,27,12],[27,14,27,15],[27,17,27,19],[30,9,30,12],[30,14,30,15],[30,17,30,19],[33,9,33,12],[33,14,33,15],[33,17,33,19],[35,9,35,14],[38,9,38,12],[38,14,38,15],[38,17,38,19],[40,9,40,14],[42,6,43,6],[42,7,43,19],[45,7,46,9],[45,10,46,12],[45,15,45,16],[46,15,46,16],[66,7,68,19],[47,15,47,16],[48,15,48,16],[49,15,49,16],[51,6,52,6],[51,7,52,19],[54,9,54,12],[54,14,54,15],[54,17,54,19],[56,9,56,16],[62,9,62,12],[62,14,62,15],[62,17,62,19],[64,9,64,10],[9,24,10,24],[9,25,10,25],[22,1,23,1],[6,24,7,29],[16,1,17,1],[19,1,20,1],[7,1,8,1],[10,1,11,1],[12,1,13,1],[6,23,7,23],[23,6,24,6],[23,7,24,19],[15,9,15,11],[17,9,17,13],[17,16,17,19],[19,9,19,12]]}
[]
[null,"e-FORMULÁŘ HCM"]
[]
[]
[null,null,null,null,null,null,"ZÁKLADNÍ INFORMACE HCM",null,null,null,null,null,null,null,null,null,null,null,null,null,null,null,null,"FUNKCIONÁŘI HCM"]
[]
[null,null,null,null,null,null,null,"KLUB HCM",null,null,null,null,null,null,null,null,null,null,null,null,null,null,null,null,"ADRESÁŘ FUNKCIONÁŘŮ HCM"]
[null,"INFORMACE KLUBU HCM"]
[]
[null,null,null,null,null,null,null,"Úplný název klubu:",null,null,null,null,null,null,null,null,null,null,null,null,null,null,null,null,"Funkcionářů:",8]
[null,"ZÁKLADNÍ INFORMACE HCM"]
[]
[null,"FUNKCIONÁŘI HCM",null,null,null,null,null,"Sídlo klubu:",null,null,null,null,null,null,null,null,null,null,null,null,null,null,null,null,"Funkce","Kategorie","Příjmení a jméno","Telefon","E-mail","Licence"]
[]
[null,null,null,null,null,null,null,null,null,null,null,null,null,null,null,null,null,null,null,null,null,null,null,null,"Hlavní trenér","Minipřípravky"]
[null,null,null,null,null,null,null,null,"IČO:",null,null,null,null,null,null,null,null,null,"Podvojné účetníctví:",null,null,null,null,null,"Vedoucí družstva","Minipřípravky"]
[null,"NÁBOROVÁ STRATEGIE HCM"]
[null,null,null,null,null,null,null,null,"Bankovní spojení:",null,null,null,null,null,null,"Banka:"]
[]
[null,"METODICKÁ ČINNOST HCM",null,null,null,null,null,null,"Webová prezentace:",null,null,null,null,null,"Sociální sítě:"]
[]
[null,null,null,null,null,null,null,null,"Domácí hřiště:",null,null,null,null,null,null,null,null,"Stupeň licence:"]
[null,"SPORTOVNÍ ČINNOST HCM"]
[null,null,null,null,null,null,null,"VEDENÍ KLUBU HCM"]
[]
[]
[null,null,null,null,null,null,null,"Statutární zástupce a informce klubu:"]
[null,null,null,null,null,null,null,null,"Předseda klubu:","Josef Novák",null,null,null,"Telefon:",773131131,null,"E-mail:","hbcturnov@seznam.cz"]
[]
[null,null,null,null,null,null,null,"Sekretář nebo účetní klubu: (nesmí být současně navrženým vedoucím HCM)"]
[null,null,null,null,null,null,null,null,"Sekretář/účetní:","Josef Novák",null,null,null,"Telefon:",773131131,null,"E-mail:","hbcturnov@seznam.cz"]
[]
[null,null,null,null,null,null,null,"Kompetentní osoba navržená na vedení HCM: (nesmí současně zastávat funkci sekretáře/účetního)"]
[null,null,null,null,null,null,null,null,"Kontaktní osoba:","Josef Novák",null,null,null,"Telefon:",773131131,null,"E-mail:","hbcturnov@seznam.cz"]
[]
[null,null,null,null,null,null,null,null,"Funkce v klubu:","šéftrenér mládeže",null,null,null,null,null,"(přílohou přihlášky je sportovní životopis navržené osoby)"]
[]
[null,null,null,null,null,null,null,"Koordinátor náborů klubu: (osoba odpovědná za realizaci náborových projektů)"]
[null,null,null,null,null,null,null,null,"Kontaktní osoba:","Josef Novák",null,null,null,"Telefon:",773131131,null,"E-mail:","hbcturnov@seznam.cz"]
[]
[null,null,null,null,null,null,null,null,"Funkce v klubu:","šéftrenér mládeže",null,null,null,null,null,"(přílohou přihlášky je systematika náborové činnosti klubu)"]
[]
[null,null,null,null,null,null,null,"SEZNAM VĚKOVÝCH KATEGORIÍ KLUBU HCM"]
[]
[]
[null,null,null,null,null,null,null,"Soutěžní ročník:",null,null,{"$f":"'NASTAVENÍ DOKUMENTU'!C9","v":"1.7.2021 - 30.6.2022"},null,null,null,null,{"$f":"_xlfn.CONCAT('NASTAVENÍ DOKUMENTU'!C11,\":\")","v":"Mikropřípravky:"},null,"ANO"]
[null,null,null,null,null,null,null,null,null,null,null,null,null,null,null,{"$f":"_xlfn.CONCAT('NASTAVENÍ DOKUMENTU'!C12,\":\")","v":"Minipřípravky:"},null,"ANO"]
[null,null,null,null,null,null,null,null,null,null,null,null,null,null,null,{"$f":"_xlfn.CONCAT('NASTAVENÍ DOKUMENTU'!C13,\":\")","v":"Přípravky:"},null,"ANO"]
[null,null,null,null,null,null,null,null,null,null,null,null,null,null,null,{"$f":"_xlfn.CONCAT('NASTAVENÍ DOKUMENTU'!C14,\":\")","v":"Mladší žáci:"},null,"ANO"]
[null,null,null,null,null,null,null,null,null,null,null,null,null,null,null,{"$f":"_xlfn.CONCAT('NASTAVENÍ DOKUMENTU'!C15,\":\")","v":"Starší žáci:"},null,"ANO"]
[]
[null,null,null,null,null,null,null,"KORESPONDENČNÍ ADRESA PRO DODÁNÍ MATERIÁLNÍ PODPORY"]
[]
[]
[null,null,null,null,null,null,null,null,"Kontaktní osoba:","Josef Novák",null,null,null,"Telefon:",773131131,null,"E-mail:","hbcturnov@seznam.cz"]
[]
[null,null,null,null,null,null,null,null,"Korespondenční adresa:","Zimní Stadion Turnov, Hokejbalová 4,Turnov 53698",null,null,null,null,null,null,null,"(Ulice, město, PSČ)"]
[]
[]
[]
[null,null,null,null,null,null,null,"Za údaje vyplněné do přihlášky odpovídá:"]
[]
[null,null,null,null,null,null,null,null,"Kontaktní osoba:","Josef Novák",null,null,null,"Telefon:",773131131,null,"E-mail:","hbcturnov@seznam.cz"]
[]
[null,null,null,null,null,null,null,null,"Datum vyplnění:","2017-12-12"]
[]
[null,null,null,null,null,null,null,"Odesláním formuláře (přihlášky) klub stvrzuje svou disciplinární bezúhonnost proti kolektivu mládeže, dospělých i jednotlivců uvedených v adresáři funkcionářů HCM za období 2 let zpětně od data podání přihlášky."]

{"sheet":"NÁBOROVÁ STRATEGIE HCM","index":1,"n_rows":44,"n_cols":92,"rows_kept":44,"cut":false,"hidden":false,"merged":[[12,1,13,1],[6,6,7,6],[6,7,7,17],[7,1,8,1],[10,1,11,1],[9,9,9,11],[42,7,42,11],[42,13,42,17],[43,7,43,11],[34,7,34,11],[34,13,34,17],[35,7,35,11],[29,7,29,11],[29,13,29,17],[30,7,30,11],[30,13,30,17],[24,7,24,11],[24,13,24,17],[20,13,21,13],[20,15,21,15],[25,7,25,11],[25,13,25,17],[9,14,9,17],[11,9,11,11],[33,7,33,11],[33,13,33,17],[26,7,26,11],[26,13,26,17],[27,7,27,11],[27,13,27,17],[28,7,28,11],[28,13,28,17],[6,21,7,21],[11,16,11,17],[13,7,16,8],[13,9,16,17],[20,7,21,7],[20,9,21,9],[31,7,31,11],[31,13,31,17],[32,7,32,11],[32,13,32,17],[6,22,7,32],[9,24,9,26],[9,29,9,32],[11,24,11,26],[11,31,11,32],[43,13,43,17],[44,7,44,11],[44,13,44,17],[23,7,23,11],[23,13,23,17],[39,7,39,11],[39,13,39,17],[40,7,40,11],[40,13,40,17],[41,7,41,11],[41,13,41,17],[35,13,35,17],[36,7,36,11],[36,13,36,17],[37,7,37,11],[37,13,37,17],[38,7,38,11],[38,13,38,17],[23,22,23,26],[23,28,23,32],[24,22,24,26],[24,28,24,32],[25,22,25,26],[25,28,25,32],[13,22,16,23],[13,24,16,32],[20,22,21,22],[20,24,21,24],[20,28,21,28],[20,30,21,30],[29,22,29,26],[29,28,29,32],[30,22,30,26],[30,28,30,32],[31,22,31,26],[31,28,31,32],[26,22,26,26],[26,28,26,32],[27,22,27,26],[27,28,27,32],[28,22,28,26],[28,28,28,32],[35,22,35,26],[35,28,35,32],[36,22,36,26],[36,28,36,32],[37,22,37,26],[37,28,37,32],[32,22,32,26],[32,28,32,32],[33,22,33,26],[33,28,33,32],[34,22,34,26],[34,28,34,32],[44,22,44,26],[44,28,44,32],[41,22,41,26],[41,28,41,32],[42,22,42,26],[42,28,42,32],[43,22,43,26],[43,28,43,32],[38,22,38,26],[38,28,38,32],[39,22,39,26],[39,28,39,32],[40,22,40,26],[40,28,40,32],[13,37,16,38],[13,39,16,47],[20,37,21,37],[20,39,21,39],[20,43,21,43],[20,45,21,45],[6,36,7,36],[6,37,7,47],[9,39,9,41],[9,44,9,47],[11,39,11,41],[11,46,11,47],[26,37,26,41],[26,43,26,47],[27,37,27,41],[27,43,27,47],[28,37,28,41],[28,43,28,47],[23,37,23,41],[23,43,23,47],[24,37,24,41],[24,43,24,47],[25,37,25,41],[25,43,25,47],[32,37,32,41],[32,43,32,47],[33,37,33,41],[33,43,33,47],[34,37,34,41],[34,43,34,47],[29,37,29,41],[29,43,29,47],[30,37,30,41],[30,43,30,47],[31,37,31,41],[31,43,31,47],[39,37,39,41],[39,43,39,47],[40,37,40,41],[40,43,40,47],[35,37,35,41],[35,43,35,47],[36,37,36,41],[36,43,36,47],[37,37,37,41],[37,43,37,47],[20,52,21,52],[20,54,21,54],[20,58,21,58],[20,60,21,60],[23,52,23,56],[23,58,23,62],[44,37,44,41],[44,43,44,47],[6,51,7,51],[6,52,7,62],[9,54,9,56],[9,59,9,62],[11,54,11,56],[11,61,11,62],[13,52,16,53],[13,54,16,62],[41,37,41,41],[41,43,41,47],[42,37,42,41],[42,43,42,47],[43,37,43,41],[43,43,43,47],[38,37,38,41],[38,43,38,47],[28,52,28,56],[28,58,28,62],[29,52,29,56],[29,58,29,62],[24,52,24,56],[24,58,24,62],[25,52,25,56],[25,58,25,62],[26,52,26,56],[26,58,26,62],[44,52,44,56],[44,58,44,62],[39,52,39,56],[39,58,39,62],[40,52,40,56],[40,58,40,62],[41,52,41,56],[41,58,41,62],[36,52,36,56],[36,58,36,62],[37,52,37,56],[37,58,37,62],[38,52,38,56],[38,58,38,62],[6,66,7,66],[6,67,7,77],[9,69,9,71],[9,74,9,77],[11,69,11,71],[11,76,11,77],[42,52,42,56],[42,58,42,62],[43,52,43,56],[43,58,43,62],[33,52,33,56],[33,58,33,62],[34,52,34,56],[34,58,34,62],[35,52,35,56],[35,58,35,62],[30,52,30,56],[30,58,30,62],[31,52,31,56],[31,58,31,62],[32,52,32,56],[32,58,32,62],[27,52,27,56],[27,58,27,62],[23,67,23,71],[23,73,23,77],[24,67,24,71],[24,73,24,77],[25,67,25,71],[25,73,25,77],[13,67,16,68],[13,69,16,77],[20,67,21,67],[20,69,21,69],[20,73,21,73],[20,75,21,75],[29,67,29,71],[29,73,29,77],[30,67,30,71],[30,73,30,77],[31,67,31,71],[31,73,31,77],[26,67,26,71],[26,73,26,77],[27,67,27,71],[27,73,27,77],[28,67,28,71],[28,73,28,77],[36,67,36,71],[36,73,36,77],[37,67,37,71],[37,73,37,77],[32,67,32,71],[32,73,32,77],[33,67,33,71],[33,73,33,77],[34,67,34,71],[34,73,34,77],[44,67,44,71],[44,73,44,77],[6,81,7,81],[6,82,7,92],[9,84,9,86],[9,89,9,92],[11,84,11,86],[11,91,11,92],[13,82,16,83],[13,84,16,92],[41,67,41,71],[41,73,41,77],[42,67,42,71],[42,73,42,77],[43,67,43,71],[43,73,43,77],[38,67,38,71],[38,73,38,77],[39,67,39,71],[39,73,39,77],[40,67,40,71],[40,73,40,77],[35,67,35,71],[35,73,35,77],[24,82,24,86],[24,88,24,92],[25,82,25,86],[25,88,25,92],[26,82,26,86],[26,88,26,92],[20,82,21,82],[20,84,21,84],[20,88,21,88],[20,90,21,90],[23,82,23,86],[23,88,23,92],[31,88,31,92],[32,82,32,86],[32,88,32,92],[27,82,27,86],[27,88,27,92],[28,82,28,86],[28,88,28,92],[29,82,29,86],[29,88,29,92],[43,82,43,86],[43,88,43,92],[44,82,44,86],[44,88,44,92],[39,82,39,86],[39,88,39,92],[40,82,40,86],[40,88,40,92],[41,82,41,86],[41,88,41,92],[30,1,31,1],[14,1,15,1],[16,1,17,1],[18,1,19,1],[20,1,21,1],[24,1,25,1],[27,1,28,1],[42,82,42,86],[42,88,42,92],[36,82,36,86],[36,88,36,92],[37,82,37,86],[37,88,37,92],[38,82,38,86],[38,88,38,92],[33,82,33,86],[33,88,33,92],[34,82,34,86],[34,88,34,92],[35,82,35,86],[35,88,35,92],[30,82,30,86],[30,88,30,92],[31,82,31,86]]}
[]
[null,"e-FORMULÁŘ HCM"]
[]
[]
[null,null,null,null,null,null,{"$f":"IF(OR(H7=\"…zadej název náborové akce\",H7=\"\"),\"NÁBOR 1\",H7)","v":"NÁBOR 1"},null,null,null,null,null,null,null,null,null,null,null,null,null,null,{"$f":"IF(OR(W7=\"…zadej název náborové akce\",W7=\"\"),\"NÁBOR 2\",W7)","v":"NÁBOR 2"},null,null,null,null,null,null,null,null,null,null,null,null,null,null,{"$f":"IF(OR(AL7=\"…zadej název náborové akce\",AL7=\"\"),\"NÁBOR 3\",AL7)","v":"NÁBOR 3"},null,null,null,null,null,null,null,null,null,null,null,null,null,null,{"$f":"IF(OR(BA7=\"…zadej název náborové akce\",BA7=\"\"),\"NÁBOR 4\",BA7)","v":"NÁBOR 4"},null,null,null,null,null,null,null,null,null,null,null,null,null,null,{"$f":"IF(OR(BP7=\"…zadej název náborové akce\",BP7=\"\"),\"NÁBOR 5\",BP7)","v":"NÁBOR 5"},null,null,null,null,null,null,null,null,null,null,null,null,null,null,{"$f":"IF(OR(CE7=\"…zadej název náborové akce\",CE7=\"\"),\"NÁBOR 6\",CE7)","v":"NÁBOR 6"}]
[]
[null,null,null,null,null,null,null,null,null,null,null,null,null,null,null,null,null,null,null,null,null,null,null,null,null,null,null,null,null,null,null,null,null,null,null,null,null,"…zadej název náborové akce",null,null,null,null,null,null,null,null,null,null,null,null,null,null,"…zadej název náborové akce",null,null,null,null,null,null,null,null,null,null,null,null,null,null,"…zadej název náborové akce",null,null,null,null,null,null,null,null,null,null,null,null,null,null,"…zadej název náborové akce"]
[null,"NÁBOROVÁ STRATEGIE HCM"]
[]
[null,null,null,null,null,null,null,null,"Cílová skupina:",null,null,null,null,"Místo konání akce:",null,null,null,null,null,null,null,null,null,"Cílová skupina:",null,null,null,null,"Místo konání akce:",null,null,null,null,null,null,null,null,null,"Cílová skupina:",null,null,null,null,"Místo konání akce:","Zadej text…",null,null,null,null,null,null,null,null,"Cílová skupina:",null,null,null,null,"Místo konání akce:","Zadej text…",null,null,null,null,null,null,null,null,"Cílová skupina:",null,null,null,null,"Místo konání akce:","Zadej text…",null,null,null,null,null,null,null,null,"Cílová skupina:",null,null,null,null,"Místo konání akce:","Zadej text…"]
[null,{"$f":"G5","v":"NÁBOR 1"}]
[null,null,null,null,null,null,null,null,"Organizátor akce:",null,null,null,"Telefon:",null,null,"E-mail:",null,null,null,null,null,null,null,"Organizátor akce:",null,null,null,"Telefon:",null,null,"E-mail:",null,null,null,null,null,null,null,"Organizátor akce:","Zadej text…",null,null,"Telefon:","Zadej text…",null,"E-mail:","Zadej text…",null,null,null,null,null,null,"Organizátor akce:","Zadej text…",null,null,"Telefon:","Zadej text…",null,"E-mail:","Zadej text…",null,null,null,null,null,null,"Organizátor akce:","Zadej text…",null,null,"Telefon:","Zadej text…",null,"E-mail:","Zadej text…",null,null,null,null,null,null,"Organizátor akce:","Zadej text…",null,null,"Telefon:","Zadej text…",null,"E-mail:","Zadej text…"]
[null,{"$f":"V5","v":"NÁBOR 2"}]
[null,null,null,null,null,null,null,"Popis náborové akce:",null,"představení hokejbalu ve školách",null,null,null,null,null,null,null,null,null,null,null,null,"Popis náborové akce:",null,"zapojení dětí nve škole ",null,null,null,null,null,null,null,null,null,null,null,null,"Popis náborové akce:",null,"Text texttext texttext texttext texttext texttext texttext texttext texttext texttext texttext texttext texttext texttext texttext texttext texttext texttext texttext texttext texttext texttext texttext texttext texttext texttext texttext texttext texttext texttext texttext texttext texttext texttext texttext texttext texttext texttext texttext texttext texttext texttext texttext texttext texttext texttext textt .",null,null,null,null,null,null,null,null,null,null,null,null,"Popis náborové akce:",null,"Text texttext texttext texttext texttext texttext texttext texttext texttext texttext texttext texttext texttext texttext texttext texttext texttext texttext texttext texttext texttext texttext texttext texttext texttext texttext texttext texttext texttext texttext texttext texttext texttext texttext texttext texttext texttext texttext texttext texttext texttext texttext texttext texttext texttext texttext textt .",null,null,null,null,null,null,null,null,null,null,null,null,"Popis náborové akce:",null,"Text texttext texttext texttext texttext texttext texttext texttext texttext texttext texttext texttext texttext texttext texttext texttext texttext texttext texttext texttext texttext texttext texttext texttext texttext texttext texttext texttext texttext texttext texttext texttext texttext texttext texttext texttext texttext texttext texttext texttext texttext texttext texttext texttext texttext texttext textt .",null,null,null,null,null,null,null,null,null,null,null,null,"Popis náborové akce:",null,"Text texttext texttext texttext texttext texttext texttext texttext texttext texttext texttext texttext texttext texttext texttext texttext texttext texttext texttext texttext texttext texttext texttext texttext texttext texttext texttext texttext texttext texttext texttext texttext texttext texttext texttext texttext texttext texttext texttext texttext texttext texttext texttext texttext texttext texttext textt ."]
[null,{"$f":"AK5","v":"NÁBOR 3"}]
[]
[null,{"$f":"AZ5","v":"NÁBOR 4"}]
[]
[null,{"$f":"BO5","v":"NÁBOR 5"}]
[]
[null,{"$f":"CD5","v":"NÁBOR 6"},null,null,null,null,null,"Počet škol - školek:",null,0,null,null,null,"Počet kroužků:",null,12,null,null,null,null,null,null,"Počet škol - školek:",null,0,null,null,null,"Počet kroužků:",null,0,null,null,null,null,null,null,"Počet škol - školek:",null,9,null,null,null,"Počet kroužků:",null,11,null,null,null,null,null,null,"Počet škol - školek:",null,10,null,null,null,"Počet kroužků:",0,9,null,null,null,null,null,null,"Počet škol - školek:",null,0,null,null,null,"Počet kroužků:",null,0,null,null,null,null,null,null,"Počet škol - školek:",null,3,null,null,null,"Počet kroužků:",null,6]
[]
[]
[null,null,null,null,null,null,null,"Název zařízení",null,null,null,null,null,"Název kroužku",null,null,null,null,null,null,null,null,"Název zařízení",null,null,null,null,null,"Název kroužku",null,null,null,null,null,null,null,null,"Název zařízení",null,null,null,null,null,"Název kroužku",null,null,null,null,null,null,null,null,"Název zařízení",null,null,null,null,null,"Název kroužku",null,null,null,null,null,null,null,null,"Název zařízení",null,null,null,null,null,"Název kroužku",null,null,null,null,null,null,null,null,"Název zařízení",null,null,null,null,null,"Název kroužku"]
[null,"INFORMACE KLUBU HCM",null,null,null,null,null,"2.ZŠ Mladá Boleslav",null,null,null,null,null,null,null,null,null,null,null,null,null,null,"Zadej název…",null,null,null,null,null,"Zadej název…",null,null,null,null,null,null,null,null,"Zadej název…",null,null,null,null,null,"Zadej název…",null,null,null,null,null,null,null,null,"Zadej název…",null,null,null,null,null,"Zadej název…",null,null,null,null,null,null,null,null,"Zadej název…",null,null,null,null,null,"Zadej název…",null,null,null,null,null,null,null,null,"Zadej název…",null,null,null,null,null,"Zadej název…"]
[null,null,null,null,null,null,null,"4.ZŠ mladá Boleslav",null,null,null,null,null,"Zadej název…",null,null,null,null,null,null,null,null,"Zadej název…",null,null,null,null,null,"Zadej název…",null,null,null,null,null,null,null,null,"Zadej název…",null,null,null,null,null,"Zadej název…",null,null,null,null,null,null,null,null,"Zadej název…",null,null,null,null,null,"Zadej název…tzu",null,null,null,null,null,null,null,null,"Zadej název…",null,null,null,null,null,"Zadej název…",null,null,null,null,null,null,null,null,"Zadej název…",null,null,null,null,null,"Zadej název…"]
[null,null,null,null,null,null,null,"ZŠ Dalovice",null,null,null,null,null,"Zadej název…",null,null,null,null,null,null,null,null,"Zadej název…",null,null,null,null,null,"Zadej název…",null,null,null,null,null,null,null,null,"Zadej název…",null,null,null,null,null,"Zadej název…",null,null,null,null,null,null,null,null,"Zadej název…",null,null,null,null,null,"Zadej název…",null,null,null,null,null,null,null,null,"Zadej název…",null,null,null,null,null,"Zadej název…",null,null,null,null,null,null,null,null,"Zadej název…",null,null,null,null,null,"Zadej název…"]
[null,"METODICKÁ ČINNOST HCM",null,null,null,null,null,"ZŠ Debř nad Jizerou",null,null,null,null,null,"Zadej název…",null,null,null,null,null,null,null,null,"Zadej název…",null,null,null,null,null,"Zadej název…",null,null,null,null,null,null,null,null,"Zadej název…",null,null,null,null,null,"Zadej název…",null,null,null,null,null,null,null,null,"Zadej název…",null,null,null,null,null,"Zadej název…",null,null,null,null,null,null,null,null,"Zadej název…",null,null,null,null,null,"Zadej název…",null,null,null,null,null,null,null,null,"Zadej název…",null,null,null,null,null,"Zadej název…"]
[null,null,null,null,null,null,null,"Zadej název…",null,null,null,null,null,"Zadej název…",null,null,null,null,null,null,null,null,"Zadej název…",null,null,null,null,null,"Zadej název…",null,null,null,null,null,null,null,null,"Zadej název…",null,null,null,null,null,"Zadej název…",null,null,null,null,null,null,null,null,"Zadej název…",null,null,null,null,null,"Zadej název…",null,null,null,null,null,null,null,null,"Zadej název…",null,null,null,null,null,"Zadej název…",null,null,null,null,null,null,null,null,"Zadej název…",null,null,null,null,null,"Zadej název…"]
[null,null,null,null,null,null,null,"ZŠ Bakov nad Jizerou",null,null,null,null,null,"Zadej název…",null,null,null,null,null,null,null,null,"Zadej název…",null,null,null,null,null,"Zadej název…",null,null,null,null,null,null,null,null,"Zadej název…",null,null,null,null,null,"Zadej název…",null,null,null,null,null,null,null,null,"Zadej název…",null,null,null,null,null,"Zadej název…",null,null,null,null,null,null,null,null,"Zadej název…",null,null,null,null,null,"Zadej název…",null,null,null,null,null,null,null,null,"Zadej název…",null,null,null,null,null,"Zadej název…"]
[null,"SPORTOVNÍ ČINNOST HCM",null,null,null,null,null,"Zadej název…",null,null,null,null,null,"Zadej název…",null,null,null,null,null,null,null,null,"Zadej název…",null,null,null,null,null,"Zadej název…",null,null,null,null,null,null,null,null,"Zadej název…",null,null,null,null,null,"Zadej název…",null,null,null,null,null,null,null,null,"Zadej název…",null,null,null,null,null,"Zadej název…",null,null,null,null,null,null,null,null,"Zadej název…",null,null,null,null,null,"Zadej název…",null,null,null,null,null,null,null,null,"Zadej název…",null,null,null,null,null,"Zadej název…"]
[null,null,null,null,null,null,null,"Zadej název…",null,null,null,null,null,"Zadej název…",null,null,null,null,null,null,null,null,"Zadej název…",null,null,null,null,null,"Zadej název…",null,null,null,null,null,null,null,null,"Zadej název…",null,null,null,null,null,"Zadej název…",null,null,null,null,null,null,null,null,"Zadej název…",null,null,null,null,null,"Zadej název…",null,null,null,null,null,null,null,null,"Zadej název…",null,null,null,null,null,"Zadej název…",null,null,null,null,null,null,null,null,"Zadej název…",null,null,null,null,null,"Zadej název…"]
[null,null,null,null,null,null,null,"Zadej název…",null,null,null,null,null,"Zadej název…",null,null,null,null,null,null,null,null,"Zadej název…",null,null,null,null,null,"Zadej název…",null,null,null,null,null,null,null,null,"Zadej název…",null,null,null,null,null,"Zadej název…",null,null,null,null,null,null,null,null,"Zadej název…",null,null,null,null,null,"Zadej název…",null,null,null,null,null,null,null,null,"Zadej název…",null,null,null,null,null,"Zadej název…",null,null,null,null,null,null,null,null,"Zadej název…",null,null,null,null,null,"Zadej název…"]
[null,null,null,null,null,null,null,"Zadej název…",null,null,null,null,null,"Zadej název…",null,null,null,null,null,null,null,null,"Zadej název…",null,null,null,null,null,"Zadej název…",null,null,null,null,null,null,null,null,"Zadej název…",null,null,null,null,null,"Zadej název…",null,null,null,null,null,null,null,null,"Zadej název…",null,null,null,null,null,"Zadej název…",null,null,null,null,null,null,null,null,"Zadej název…",null,null,null,null,null,"Zadej název…",null,null,null,null,null,null,null,null,"Zadej název…",null,null,null,null,null,"Zadej název…"]
[null,null,null,null,null,null,null,"Zadej název…",null,null,null,null,null,"Zadej název…",null,null,null,null,null,null,null,null,"Zadej název…",null,null,null,null,null,"Zadej název…",null,null,null,null,null,null,null,null,"Zadej název…",null,null,null,null,null,"Zadej název…",null,null,null,null,null,null,null,null,"Zadej název…",null,null,null,null,null,"Zadej název…",null,null,null,null,null,null,null,null,"Zadej název…",null,null,null,null,null,"Zadej název…",null,null,null,null,null,null,null,null,"Zadej název…",null,null,null,null,null,"Zadej název…"]
[null,null,null,null,null,null,null,"Zadej název…",null,null,null,null,null,"Zadej název…",null,null,null,null,null,null,null,null,"Zadej název…",null,null,null,null,null,"Zadej název…",null,null,null,null,null,null,null,null,"Zadej název…",null,null,null,null,null,"Zadej název…",null,null,null,null,null,null,null,null,"Zadej název…",null,null,null,null,null,"Zadej název…",null,null,null,null,null,null,null,null,"Zadej název…",null,null,null,null,null,"Zadej název…",null,null,null,null,null,null,null,null,"Zadej název…",null,null,null,null,null,"Zadej název…"]
[null,null,null,null,null,null,null,"Zadej název…",null,null,null,null,null,"Zadej název…",null,null,null,null,null,null,null,null,"Zadej název…",null,null,null,null,null,"Zadej název…",null,null,null,null,null,null,null,null,"Zadej název…",null,null,null,null,null,"Zadej název…",null,null,null,null,null,null,null,null,"Zadej název…",null,null,null,null,null,"Zadej název…",null,null,null,null,null,null,null,null,"Zadej název…",null,null,null,null,null,"Zadej název…",null,null,null,null,null,null,null,null,"Zadej název…",null,null,null,null,null,"Zadej název…"]
[null,null,null,null,null,null,null,"Zadej název…",null,null,null,null,null,"Zadej název…",null,null,null,null,null,null,null,null,"Zadej název…",null,null,null,null,null,"Zadej název…",null,null,null,null,null,null,null,null,"Zadej název…",null,null,null,null,null,"Zadej název…",null,null,null,null,null,null,null,null,"Zadej název…",null,null,null,null,null,"Zadej název…",null,null,null,null,null,null,null,null,"Zadej název…",null,null,null,null,null,"Zadej název…",null,null,null,null,null,null,null,null,"Zadej název…",null,null,null,null,null,"Zadej název…"]
[null,null,null,null,null,null,null,"Zadej název…",null,null,null,null,null,"Zadej název…",null,null,null,null,null,null,null,null,"Zadej název…",null,null,null,null,null,"Zadej název…",null,null,null,null,null,null,null,null,"Zadej název…",null,null,null,null,null,"Zadej název…",null,null,null,null,null,null,null,null,"Zadej název…",null,null,null,null,null,"Zadej název…",null,null,null,null,null,null,null,null,"Zadej název…",null,null,null,null,null,"Zadej název…",null,null,null,null,null,null,null,null,"Zadej název…",null,null,null,null,null,"Zadej název…"]
[null,null,null,null,null,null,null,"Zadej název…",null,null,null,null,null,"Zadej název…",null,null,null,null,null,null,null,null,"Zadej název…",null,null,null,null,null,"Zadej název…",null,null,null,null,null,null,null,null,"Zadej název…",null,null,null,null,null,"Zadej název…",null,null,null,null,null,null,null,null,"Zadej název…",null,null,null,null,null,"Zadej název…",null,null,null,null,null,null,null,null,"Zadej název…",null,null,null,null,null,"Zadej název…",null,null,null,null,null,null,null,null,"Zadej název…",null,null,null,null,null,"Zadej název…"]
[null,null,null,null,null,null,null,"Zadej název…",null,null,null,null,null,"Zadej název…",null,null,null,null,null,null,null,null,"Zadej název…",null,null,null,null,null,"Zadej název…",null,null,null,null,null,null,null,null,"Zadej název…",null,null,null,null,null,"Zadej název…",null,null,null,null,null,null,null,null,"Zadej název…",null,null,null,null,null,"Zadej název…",null,null,null,null,null,null,null,null,"Zadej název…",null,null,null,null,null,"Zadej název…",null,null,null,null,null,null,null,null,"Zadej název…",null,null,null,null,null,"Zadej název…"]
[null,null,null,null,null,null,null,"Zadej název…",null,null,null,null,null,"Zadej název…",null,null,null,null,null,null,null,null,"Zadej název…",null,null,null,null,null,"Zadej název…",null,null,null,null,null,null,null,null,"Zadej název…",null,null,null,null,null,"Zadej název…",null,null,null,null,null,null,null,null,"Zadej název…",null,null,null,null,null,"Zadej název…",null,null,null,null,null,null,null,null,"Zadej název…",null,null,null,null,null,"Zadej název…",null,null,null,null,null,null,null,null,"Zadej název…",null,null,null,null,null,"Zadej název…"]
[null,null,null,null,null,null,null,"Zadej název…",null,null,null,null,null,"Zadej název…",null,null,null,null,null,null,null,null,"Zadej název…",null,null,null,null,null,"Zadej název…",null,null,null,null,null,null,null,null,"Zadej název…",null,null,null,null,null,"Zadej název…",null,null,null,null,null,null,null,null,"Zadej název…",null,null,null,null,null,"Zadej název…",null,null,null,null,null,null,null,null,"Zadej název…",null,null,null,null,null,"Zadej název…",null,null,null,null,null,null,null,null,"Zadej název…",null,null,null,null,null,"Zadej název…"]
[null,null,null,null,null,null,null,"Zadej název…",null,null,null,null,null,"Zadej název…",null,null,null,null,null,null,null,null,"Zadej název…",null,null,null,null,null,"Zadej název…",null,null,null,null,null,null,null,null,"Zadej název…",null,null,null,null,null,"Zadej název…",null,null,null,null,null,null,null,null,"Zadej název…",null,null,null,null,null,"Zadej název…",null,null,null,null,null,null,null,null,"Zadej název…",null,null,null,null,null,"Zadej název…",null,null,null,null,null,null,null,null,"Zadej název…",null,null,null,null,null,"Zadej název…"]

{"sheet":"METODICKÁ ČINNOST HCM","index":2,"n_rows":28,"n_cols":27,"rows_kept":28,"cut":false,"hidden":false,"merged":[[12,1,13,1],[9,7,12,9],[9,10,12,15],[6,6,7,6],[6,7,7,15],[7,1,8,1],[10,1,11,1],[6,19,7,19],[6,20,7,28],[9,20,12,22],[9,23,12,28],[14,20,15,21],[14,23,15,23],[14,24,15,27],[16,1,17,1],[22,1,23,1],[14,11,15,14],[14,10,15,10],[14,7,15,8],[19,1,20,1]]}
[]
[null,"e-FORMULÁŘ HCM"]
[]
[]
[null,null,null,null,null,null,"TRENÉRSKÉ RADY HCM",null,null,null,null,null,null,null,null,null,null,null,null,"SETKÁNÍ S RODIČI"]
[]
[null,null,null,null,null,null,null,"TRENÉRSKÉ RADY HCM",null,null,null,null,null,null,null,null,null,null,null,null,"SETKÁNÍ S RODIČI HRÁČŮ"]
[null,"METODICKÁ ČINNOST HCM"]
[]
[null,null,null,null,null,null,null,"Poznámky k trenérským radám:",null,null,"herbnebdfngdbhhssh",null,null,null,null,null,null,null,null,null,"Poznámky k setkání s rodiči:",null,null,"Text texttext texttext texttext texttext texttext texttext texttext texttext texttext texttext texttext texttext texttext texttext texttext texttext texttext texttext texttext texttext texttext texttext texttext texttext texttext texttext texttext texttext texttext texttext texttext texttext texttext texttext texttext texttext texttext texttext texttext texttext texttext texttext texttext texttext texttext textt ."]
[null,{"$f":"G5","v":"TRENÉRSKÉ RADY HCM"}]
[]
[null,"SETKÁNÍ S RODIČI"]
[]
[null,null,null,null,null,null,null,"Počet trenérských rad klubu:",null,null,4,"(minimální počet trenérských rad jsou 4, maximální 10 rad)",null,null,null,null,null,null,null,null,"Počet setkání s rodiči:",null,null,4,"(minimální počet setkání s rodiči je 4, maximální 10 rad)"]
[null,null,null,null,null,null,null,null,null,4,null,null,null,null,null,null,null,null,null,null,null,null,4]
[null,"INFORMACE KLUBU HCM"]
[null,null,null,null,null,null,null,null,null,null,"Den","Datum","Čas","Místo konání",null,null,null,null,null,null,null,null,null,"Den","Datum","Čas","Místo konání"]
[null,null,null,null,null,null,null,null,null,null,{"$f":"IF(L19=\"\",\"\",TEXT(L19,\"dddd\"))","v":"sobota"},"2020-12-12","11:00:00","České Budějovice",null,null,null,null,null,null,null,null,null,{"$f":"IF(Y19=\"\",\"\",TEXT(Y19,\"dddd\"))","v":"sobota"},"2020-12-12","11:00:00","České Budějovice"]
[null,"NÁBOROVÁ STRATEGIE HCM",null,null,null,null,null,null,null,null,{"$f":"IF(L20=\"\",\"\",TEXT(L20,\"dddd\"))","v":"neděle"},"2020-12-13","13:00:00","Praha",null,null,null,null,null,null,null,null,null,{"$f":"IF(Y20=\"\",\"\",TEXT(Y20,\"dddd\"))","v":""}]
[null,null,null,null,null,null,null,null,null,null,"úterý","2020-12-15","11:00:00","Ostrava",null,null,null,null,null,null,null,null,null,""]
[null,null,null,null,null,null,null,null,null,null,"pátek","2021-01-15","18:00:00","Brno",null,null,null,null,null,null,null,null,null,""]
[null,"SPORTOVNÍ ČINNOST HCM",null,null,null,null,null,null,null,null,"",null,null,null,null,null,null,null,null,null,null,null,null,""]
[null,null,null,null,null,null,null,null,null,null,"",null,null,null,null,null,null,null,null,null,null,null,null,""]
[null,null,null,null,null,null,null,null,null,null,"",null,null,null,null,null,null,null,null,null,null,null,null,""]
[null,null,null,null,null,null,null,null,null,null,"",null,null,null,null,null,null,null,null,null,null,null,null,""]
[null,null,null,null,null,null,null,null,null,null,"",null,null,null,null,null,null,null,null,null,null,null,null,""]
[null,null,null,null,null,null,null,null,null,null,"",null,null,null,null,null,null,null,null,null,null,null,null,""]

{"sheet":"SPORTOVNÍ ČINNOST HCM","index":3,"n_rows":38,"n_cols":39,"rows_kept":38,"cut":false,"hidden":false,"merged":[[9,7,10,9],[12,1,13,1],[6,6,7,6],[6,7,7,14],[6,18,7,18],[7,1,8,1],[10,1,11,1],[37,1,38,1],[18,1,19,1],[21,1,22,1],[24,1,25,1],[14,1,15,1],[6,19,7,26],[9,19,10,21],[6,30,7,30],[6,31,7,38],[9,31,10,33]]}
[]
[null,"e-FORMULÁŘ HCM"]
[]
[]
[null,null,null,null,null,null,"PODZIMNÍ ČÁST",null,null,null,null,null,null,null,null,null,null,null,"JARNÍ ČÁST",null,null,null,null,null,null,null,null,null,null,null,"KONDIČNÍ PŘÍPRAVA"]
[]
[null,null,null,null,null,null,null,"KALENDÁŘ",null,null,null,null,null,null,null,null,null,null,null,"KALENDÁŘ",null,null,null,null,null,null,null,null,null,null,null,"KALENDÁŘ"]
[null,"SPORTOVNÍ ČINNOST HCM"]
[]
[]
[null,"KALENDÁŘ - PODZIMNÍ ČÁST"]
[]
[null,"KALENDÁŘ - JARNÍ ČÁST",null,null,null,null,null,null,null,null,null,null,"Místo ",null,null,null,null,null,null,null,null,null,null,null,"Místo ",null,null,null,null,null,null,null,null,null,null,null,"Místo "]
[null,null,null,null,null,null,null,"Datum","den","Od","Do","kategorie","(hřiště/tělocvična)","Adresa konání (TĚLOCVIČNA)","Poznámka",null,null,null,null,"Datum","den","Od","Do","kategorie","(hřiště/tělocvična)","Adresa konání (TĚLOCVIČNA)","Poznámka",null,null,null,null,"Datum","den","Od","Do","kategorie","(hřiště/tělocvična)","Adresa konání (TĚLOCVIČNA)","Poznámka"]
[null,"KALENDÁŘ - KONDIČNÍ PŘÍPRAVA",null,null,null,null,null,"Sloupec1","Sloupec2","Sloupec3","Sloupec4","Sloupec5","Sloupec6","Sloupec7","Sloupec8",null,null,null,null,"Sloupec1","Sloupec2","Sloupec3","Sloupec4","Sloupec5","Sloupec6","Sloupec7","Sloupec8",null,null,null,null,"Sloupec1","Sloupec2","Sloupec3","Sloupec4","Sloupec5","Sloupec6","Sloupec7","Sloupec8"]
[null,null,null,null,null,null,null,null,null,null,null,null,null,null,null,null,null,null,null,null,{"$f":"IF(PC_9[[#This Row],[Sloupec1]]=\"\",\"\",TEXT(PC_9[[#This Row],[Sloupec1]],\"dddd\"))","v":""},null,null,null,null,null,null,null,null,null,null,null,{"$f":"IF(PC_910[[#This Row],[Sloupec1]]=\"\",\"\",TEXT(PC_910[[#This Row],[Sloupec1]],\"dddd\"))","v":""}]
[null,null,null,null,null,null,null,null,{"$f":"IF(PC[[#This Row],[Sloupec1]]=\"\",\"\",TEXT(PC[[#This Row],[Sloupec1]],\"dddd\"))","v":""}]
[null,null,null,null,null,null,null,null,{"$f":"IF(PC[[#This Row],[Sloupec1]]=\"\",\"\",TEXT(PC[[#This Row],[Sloupec1]],\"dddd\"))","v":""}]
[null,"INFORMACE KLUBU HCM",null,null,null,null,null,null,{"$f":"IF(PC[[#This Row],[Sloupec1]]=\"\",\"\",TEXT(PC[[#This Row],[Sloupec1]],\"dddd\"))","v":""}]
[null,null,null,null,null,null,null,null,{"$f":"IF(PC[[#This Row],[Sloupec1]]=\"\",\"\",TEXT(PC[[#This Row],[Sloupec1]],\"dddd\"))","v":""}]
[]
[null,"NÁBOROVÁ STRATEGIE HCM"]
[]
[]
[null,"METODICKÁ ČINNOST HCM"]
[]
[]
[]
[]
[]
[]
[]
[null,"Postup při zákazu maker v MS Excel:"]
[null,"1) Záložka Soubor > Možnosti > Centrum zabezpečení"]
[null,"2) Nastavení centra zabezpečení > Nastavení maker"]
[null,"3) Zaškrtněte políčka:"]
[null,"a) Povolit všechna makra"]
[null,"b) Důvěřovat přístupu k objektovému modelu projektu VBA"]

{"sheet":"NASTAVENÍ DOKUMENTU","index":4,"n_rows":33,"n_cols":9,"rows_kept":33,"cut":false,"hidden":true,"merged":[[21,2,21,3],[8,2,8,3],[10,2,10,3],[11,2,11,3],[12,2,12,3],[13,2,13,3],[14,2,14,3],[16,2,16,3],[17,2,17,3],[18,2,18,3],[19,2,19,3],[20,2,20,3],[31,2,31,3],[32,2,32,3],[22,2,22,3],[23,2,23,3],[24,2,24,3],[25,2,25,3],[26,2,26,3],[27,2,27,3]]}
[null,"NASTAVENÍ DOKUMENTU"]
[]
[]
[]
[null,"Prostý výběr:",null,"ANO","NE"]
[]
[null,"Typ licence stadionu:",null,"A","B","C","D","E","S"]
[]
[null,"Soutěžní ročník:","1.7.2021 - 30.6.2022"]
[]
[null,"Věkové kategorie:","Mikropřípravky"]
[null,null,"Minipřípravky"]
[null,null,"Přípravky"]
[null,null,"Mladší žáci"]
[null,null,"Starší žáci"]
[]
[null,"Typ funkcionáře:","Hlavní trenér"]
[null,null,"Hlavní trenérka"]
[null,null,"Asistent trenéra"]
[null,null,"Vedoucí družstva"]
[null,null,"Kustod"]
[null,null,"Kondiční trenér"]
[null,null,"Kondiční trenérka"]
[null,null,"Šéftrenér mládeže"]
[null,null,"Trenér brankařů"]
[null,null,"Jiná funkce"]
[null,null,"Koordinátor náboru"]
[null,null,"Funkcionář náboru"]
[]
[null,"Licence trenéra:",null,"A","B","C","D"]
[]
[null,"Místo:","HŘIŠTĚ"]
[null,null,"TĚLOCVIČNA"]